bitfinex/quotes_BTCUSD_20220204
["timestamp","ask_amount","ask_price","bid_price","bid_amount"]
[1643955884403,0.00389458,37994.0,37990.0,0.04610541]
[1643955884804,0.00100188,37993.0,37990.0,0.04610541]
[1643955885047,0.00100188,37993.0,37989.0,0.57107584]
[1643955885248,0.00100188,37993.0,37992.0,1.34610541]
[1643955885446,0.00100188,37993.0,37992.0,2.01404184]
[1643955885648,0.001,37997.0,37992.0,0.76404184]
[1643955885847,0.001,37997.0,37996.0,0.04610541]
[1643955886948,0.001,37997.0,37995.0,0.24156]
[1643955887748,0.001,37997.0,37996.0,0.04610541]
[1643955887948,0.001,37997.0,37995.0,0.51134766]
[1643955888152,0.00389458,37996.0,37995.0,0.24156]
[1643955888901,0.00389458,37996.0,37991.0,0.28498375]
[1643955889101,0.07612178,37997.0,37993.0,0.04610541]
[1643955889301,0.00389458,37994.0,37991.0,0.44829207]
[1643955889502,0.00389458,37994.0,37991.0,0.40218666]
[1643955889702,0.00100185,37995.0,37991.0,0.69577666]
[1643955889905,0.00100185,37995.0,37993.0,0.04610541]
[1643955890203,0.00100185,37995.0,37992.0,0.31960603]
[1643955890204,0.00489643,37995.0,37992.0,0.31960603]
[1643955890401,0.00489643,37995.0,37992.0,0.27350062]
[1643955890602,0.001,37997.0,37992.0,0.27350062]
[1643955890806,0.00389458,37993.0,37992.0,0.27350062]
[1643955891003,0.00389458,37993.0,37986.0,0.04610541]
[1643955891004,0.06971958,37993.0,37986.0,0.04610541]
[1643955891205,0.00389458,37993.0,37992.0,0.04610541]
[1643955892453,0.00100186,37994.0,37992.0,0.04999999]
[1643955892853,0.001,37997.0,37992.0,0.04999999]
[1643955893252,0.00100186,37995.0,37992.0,0.04999999]
[1643955893853,0.00100186,37995.0,37992.0,0.0701511]
[1643955894051,0.001,37997.0,37992.0,0.0701511]
[1643955894252,0.001,37997.0,37994.0,0.08379862]
[1643955894453,0.00100185,37995.0,37994.0,0.08379862]
[1643955894652,0.00100185,37995.0,37993.0,0.04999999]
[1643955894853,0.00100185,37995.0,37992.0,0.0701511]
[1643955895254,0.001,37997.0,37992.0,0.0701511]
[1643955895459,0.001,37997.0,37996.0,0.04999999]
[1643955895656,0.001,37997.0,37995.0,0.309646]
[1643955895855,0.001,37997.0,37994.0,0.56543196]
[1643955896304,0.001,37997.0,37992.0,0.04999999]
[1643955896503,0.001,37997.0,37995.0,0.08261715]
[1643955896707,0.00200182,37997.0,37995.0,0.08261715]
[1643955897704,0.001,37997.0,37995.0,0.08261715]
[1643955897904,0.066817,37997.0,37995.0,0.08261715]
[1643955898107,0.066817,37997.0,37994.0,0.04999999]
[1643955898610,0.001,37997.0,37994.0,0.04999999]
[1643955898805,0.001,37997.0,37992.0,0.67922645]
[1643955899206,0.00200182,37997.0,37992.0,0.67922645]
[1643955899606,0.00200182,37997.0,37996.0,0.28498528]
[1643955900048,0.00200182,37997.0,37995.0,0.09521145]
[1643955900049,0.001,37997.0,37995.0,0.09521145]
[1643955901253,0.001,37997.0,37993.0,0.04999999]
[1643955901454,0.066818,37997.0,37993.0,0.04999999]
[1643955901650,0.065825,37994.0,37992.0,0.04999999]
[1643955902952,0.065826,37993.0,37992.0,0.04999999]
[1643955903149,0.14836086,37993.0,37992.0,0.04999999]
[1643955903707,0.115825,37994.0,37992.0,0.04999999]
[1643955903903,0.11682686,37994.0,37992.0,0.04999999]
[1643955904501,0.11682686,37994.0,37992.0,0.31097569]
[1643955904901,0.115825,37994.0,37992.0,0.31097569]
[1643955905103,0.115825,37994.0,37993.0,0.31588001]
[1643955905303,0.00100186,37995.0,37993.0,0.31588001]
[1643955905503,0.00100186,37995.0,37994.0,0.04999999]
[1643955905704,0.00100186,37995.0,37993.0,0.31588001]
[1643955905904,0.00100186,37995.0,37994.0,0.04999999]
[1643955906103,0.001,37997.0,37994.0,0.04999999]
[1643955906303,0.00100184,37996.0,37994.0,0.04999999]
[1643955906705,0.00100184,37996.0,37994.0,0.12715102]
[1643955907448,0.00200183,37997.0,37994.0,0.47913054]
[1643955907648,0.00200183,37997.0,37996.0,0.04999999]
[1643955908350,0.00200183,37997.0,37995.0,0.04999999]
[1643955908549,0.00200183,37997.0,37994.0,0.42913055]
[1643955908550,0.001,37997.0,37994.0,0.42913055]
[1643955909349,0.001,37997.0,37994.0,0.35197952]
[1643955910149,0.001,37997.0,37994.0,0.34697952]
[1643955910349,0.001,37997.0,37994.0,0.44157344]
[1643955910950,0.001,37997.0,37994.0,0.09459392]
[1643955911212,0.00200133,37997.0,37992.0,0.57148319]
[1643955911905,0.00200133,37997.0,37992.0,0.59180208]
[1643955912099,0.001,37997.0,37992.0,0.30931684]
[1643955912299,0.00094578,37996.0,37992.0,0.30931684]
[1643955913300,0.001,37997.0,37992.0,0.30931684]
[1643955913301,0.001,37997.0,37995.0,1.94574599]
[1643955913499,0.001,37997.0,37996.0,2.24670292]
[1643955913900,0.00293999,38009.0,37996.0,2.24670292]
[1643955914102,0.00293999,38009.0,38008.0,0.3571558]
[1643955914301,0.00293999,38009.0,38008.0,0.64999999]
[1643955914505,0.00293999,38009.0,38008.0,0.04999999]
[1643955915754,0.00293999,38009.0,38007.0,0.66238951]
[1643955915953,0.00293999,38009.0,38008.0,0.04999999]
[1643955916354,0.00293999,38009.0,38008.0,0.79999999]
[1643955916553,0.00293999,38009.0,38008.0,0.345746]
[1643955916754,0.00293999,38009.0,38007.0,0.7123895]
[1643955917354,0.00293999,38009.0,38008.0,0.31223114]
[1643955917555,0.00293999,38009.0,38008.0,0.65797714]
[1643955918159,0.28004139,38016.0,38010.0,0.8]
[1643955918358,0.28004139,38016.0,38008.0,0.94382673]
[1643955918359,0.00400567,38016.0,38015.0,0.04999999]
[1643955919113,0.00400567,38016.0,38015.0,0.68304237]
[1643955919313,0.0011,38018.0,38015.0,1.02878837]
[1643955919514,0.0011,38018.0,38016.0,0.345746]
[1643955919717,0.06209999,38017.0,38015.0,0.33355493]
[1643955920316,0.06197999,38017.0,38015.0,0.33355493]
[1643955920515,0.06191999,38017.0,38015.0,0.33355493]
[1643955920715,0.06179999,38017.0,38015.0,0.33355493]
[1643955920914,0.06167999,38017.0,38015.0,0.33355493]
[1643955921314,0.06167999,38017.0,38015.0,0.27584907]
[1643955921516,0.345386,38016.0,38015.0,0.27584907]
[1643955921717,0.395386,38016.0,38015.0,0.27584907]
[1643955922866,0.395386,38016.0,38009.0,0.28053932]
[1643955922867,0.395386,38016.0,38010.0,0.07500914]
[1643955923065,0.395386,38016.0,38014.0,0.00100533]
[1643955923066,0.04999999,38015.0,38014.0,0.00100533]
[1643955923264,0.04999999,38015.0,38010.0,0.07101447]
[1643955923666,0.345386,38014.0,38010.0,0.07101447]
[1643955923863,0.345386,38014.0,38013.0,0.25059307]
[1643955924268,0.06168,38017.0,38014.0,0.345386]
[1643955924463,0.06168,38017.0,38013.0,0.25059307]
[1643955924664,0.345386,38016.0,38013.0,0.25059307]
[1643955925068,0.04999999,38015.0,38014.0,0.22211029]
[1643955925767,0.05996756,38017.0,38015.0,0.345386]
[1643955926219,0.05996756,38017.0,38016.0,0.3514795]
[1643955926613,0.05996756,38017.0,38016.0,0.43488358]
[1643955926811,0.05996756,38017.0,38016.0,0.78026958]
[1643955926812,0.05496756,38017.0,38016.0,0.78026958]
[1643955927615,0.0025,38023.0,38019.0,1.0]
[1643955927813,0.347886,38023.0,38022.0,0.04999999]
[1643955928014,0.347386,38023.0,38022.0,0.04999999]
[1643955928211,0.347386,38023.0,38020.0,0.04999999]
[1643955928515,0.347886,38023.0,38021.0,0.52564059]
[1643955928712,0.347886,38023.0,38022.0,0.29284574]
[1643955928912,0.397386,38023.0,38021.0,0.22710991]
[1643955929113,0.0025,38023.0,38021.0,0.22710991]
[1643955929312,0.340386,38022.0,38021.0,0.22710991]
[1643955929513,0.0025,38023.0,38022.0,0.345344]
[1643955929711,0.002,38023.0,38022.0,0.63633246]
[1643955930354,0.002,38023.0,38022.0,0.345344]
[1643955930553,0.002,38023.0,38022.0,0.63319717]
[1643955930956,0.002,38023.0,38022.0,0.43989518]
[1643955931155,0.00182,38023.0,38021.0,0.22710991]
[1643955931358,0.340641,38022.0,38021.0,0.22710991]
[1643955931555,0.340521,38022.0,38021.0,0.22710991]
[1643955931854,0.00226,38023.0,38021.0,0.22710991]
[1643955932055,0.00176,38023.0,38021.0,0.43541273]
[1643955932255,0.340521,38022.0,38021.0,0.22710991]
[1643955933157,0.340521,38022.0,38021.0,0.32775234]
[1643955933355,0.00326515,38023.0,38021.0,0.32775234]
[1643955933556,0.00276515,38023.0,38021.0,0.32775234]
[1643955933802,0.340521,38022.0,38021.0,0.32775234]
[1643955934002,0.00226,38023.0,38021.0,0.32275234]
[1643955934204,0.00176,38023.0,38021.0,0.32275234]
[1643955934401,0.00176,38023.0,38021.0,0.22210991]
[1643955934802,0.00176,38023.0,38022.0,0.845344]
[1643955935003,0.00176,38023.0,38022.0,0.345344]
[1643955935905,0.00176,38023.0,38021.0,0.3092451]
[1643955936303,0.00176,38023.0,38022.0,0.345344]
[1643955937205,0.00176,38023.0,38022.0,0.39534399]
[1643955937752,0.00176,38023.0,38022.0,0.6833027]
[1643955938850,0.00176,38023.0,38022.0,0.39534399]
[1643955939052,0.00176,38023.0,38022.0,0.69230312]
[1643955939650,0.00176,38023.0,38022.0,0.55964233]
[1643955941904,0.00176,38023.0,38022.0,0.2626832]
[1643955943108,0.00176,38023.0,38022.0,0.26259631]
[1643955944108,0.00176,38023.0,38022.0,0.76259631]
[1643955944809,0.00176,38023.0,38022.0,1.07072163]
[1643955945250,0.00176,38023.0,38022.0,0.76259631]
[1643955945450,0.00176,38023.0,38022.0,1.05793775]
[1643955945649,0.00176,38023.0,38022.0,0.76259631]
[1643955946251,0.00176,38023.0,38022.0,0.26259631]
[1643955946852,0.00176,38023.0,38015.0,0.0048]
[1643955947054,0.00176,38023.0,38014.0,0.0010054]
[1643955947055,0.00176,38023.0,38016.0,0.5]
[1643955947353,0.00176,38023.0,38018.0,0.04999999]
[1643955947552,0.00176,38023.0,38018.0,0.39533699]
[1643955947751,0.00176,38023.0,38020.0,0.21893137]
[1643955947953,0.00176,38023.0,38017.0,0.34787602]
[1643955948151,0.00176,38023.0,38014.0,0.05100539]
[1643955948152,0.00176,38023.0,38015.0,0.34787602]
[1643955948357,0.00276515,38023.0,38019.0,0.37796538]
[1643955948551,0.00276515,38023.0,38022.0,0.22773897]
[1643955948804,0.00276515,38023.0,38022.0,0.32844821]
[1643955949403,0.00176,38023.0,38022.0,0.32844821]
[1643955949806,0.00176,38023.0,38022.0,0.32734821]
[1643955951608,0.00176,38023.0,38022.0,0.67268521]
[1643955951805,0.00176,38023.0,38022.0,0.7226852]
[1643955953256,0.00176,38023.0,38022.0,0.7176852]
[1643955954258,0.00176,38023.0,38022.0,0.66768521]
[1643955954760,0.00176,38023.0,38022.0,0.32234821]
[1643955956308,0.347097,38023.0,38022.0,0.32234821]
[1643955956504,0.00176,38023.0,38022.0,0.32234821]
[1643955956709,0.347097,38023.0,38022.0,0.22163897]
[1643955956903,0.00176,38023.0,38022.0,0.57252916]
[1643955957104,0.347097,38023.0,38022.0,0.57252916]
[1643955957703,0.347097,38023.0,38022.0,0.22163897]
[1643955957902,0.347097,38023.0,38022.0,0.32615461]
[1643955958102,0.129693,38023.0,38022.0,0.32615461]
[1643955958702,0.129693,38023.0,38014.0,0.0010054]
[1643955958703,0.129693,38023.0,38014.0,0.34740319]
[1643955958906,0.129693,38023.0,38014.0,0.0010054]
[1643955958907,0.00226,38023.0,38014.0,0.0010054]
[1643955959103,0.00226,38023.0,38014.0,0.50100535]
[1643955959304,0.00100519,38020.0,38014.0,0.50100535]
[1643955959503,0.00100519,38020.0,38014.0,0.00100535]
[1643955959707,0.00100519,38020.0,38017.0,0.25292368]
[1643955959966,0.09312126,38020.0,38017.0,0.25292368]
[1643955960162,0.34074781,38023.0,38017.0,0.25292368]
[1643955960364,0.33848781,38021.0,38017.0,0.22763132]
[1643955960567,0.00100519,38020.0,38017.0,0.22763132]
[1643955961165,0.345337,38019.0,38017.0,0.22763132]
[1643955961365,0.33848781,38021.0,38017.0,0.22763132]
[1643955961763,0.00100519,38020.0,38017.0,0.22763132]
[1643955961964,0.00100519,38020.0,38018.0,0.08124143]
[1643955962466,0.339493,38020.0,38018.0,0.08124143]
[1643955962668,0.33848781,38020.0,38017.0,0.22763132]
[1643955963269,0.33848781,38020.0,38014.0,0.31776826]
[1643955963466,0.33848781,38019.0,38014.0,0.36776825]
[1643955963722,0.33848781,38019.0,38015.0,0.345337]
[1643955964113,0.33848781,38019.0,38018.0,0.81678463]
[1643955964311,0.68382481,38019.0,38018.0,0.81678463]
[1643955965112,0.345337,38019.0,38018.0,0.81678463]
[1643955966813,0.339493,38020.0,38018.0,0.81678463]
[1643955966814,0.00100519,38020.0,38018.0,0.81678463]
[1643955967214,0.278424,38021.0,38019.0,0.45]
[1643955967456,0.39484168,38022.0,38018.0,0.81678463]
[1643955967658,0.34634218,38021.0,38020.0,1.00163819]
[1643955967857,0.00100518,38021.0,38020.0,0.60163818]
[1643955968059,0.00100518,38021.0,38020.0,0.90255263]
[1643955968257,0.00100518,38021.0,38020.0,0.89697519]
[1643955968657,0.00176,38023.0,38020.0,0.89697519]
[1643955968857,0.00176,38023.0,38020.0,0.55163819]
[1643955969060,0.345337,38022.0,38020.0,0.25158437]
[1643955969658,0.00226,38023.0,38020.0,0.25158437]
[1643955969858,0.00226,38023.0,38021.0,0.04999999]
[1643955970061,0.00176,38023.0,38020.0,0.25158437]
[1643955970258,0.00176,38023.0,38021.0,0.08180666]
[1643955970861,0.00176,38023.0,38022.0,0.33340515]
[1643955971060,0.22920168,38025.0,38021.0,0.09180666]
[1643955971314,0.00100589,38024.0,38021.0,0.09180666]
[1643955972209,0.001,38027.0,38021.0,0.09180666]
[1643955972410,0.00095062,38024.0,38021.0,0.3762664]
[1643955972609,0.00095062,38024.0,38023.0,0.70646117]
[1643955972810,0.00095062,38024.0,38023.0,0.20646117]
[1643955973209,0.00095062,38024.0,38022.0,0.04999999]
[1643955973414,0.001,38027.0,38022.0,0.04999999]
[1643955973610,0.001,38027.0,38025.0,0.24862741]
[1643955973912,0.001,38027.0,38025.0,0.2986274]
[1643955974110,0.001,38027.0,38025.0,0.24862741]
[1643955974710,0.001,38027.0,38025.0,0.48996295]
[1643955975453,0.001,38027.0,38025.0,0.24862741]
[1643955975653,0.33888907,38026.0,38025.0,0.24862741]
[1643955976654,0.14795676,38032.0,38025.0,0.24862741]
[1643955976655,0.06675031,38036.0,38029.0,1.2]
[1643955976862,0.44377265,38043.0,38035.0,0.04999999]
[1643955977054,6e-05,38045.0,38040.0,0.04999999]
[1643955977255,6e-05,38045.0,38041.0,0.345337]
[1643955977455,6e-05,38045.0,38042.0,0.23691231]
[1643955977655,0.15159152,38055.0,38050.0,1.28879684]
[1643955977856,0.001,38058.0,38052.0,0.04999999]
[1643955978055,0.001,38058.0,38053.0,0.34026475]
[1643955978056,0.04999999,38057.0,38053.0,0.34026475]
[1643955978254,0.04999999,38057.0,38050.0,0.34526476]
[1643955978255,0.04756639,38057.0,38050.0,0.34526476]
[1643955978553,0.04756639,38056.0,38055.0,0.0024336]
[1643955978807,0.04756639,38056.0,38055.0,0.345337]
[1643955979010,0.04756639,38056.0,38052.0,0.34526476]
[1643955979206,0.001,38058.0,38051.0,0.32850094]
[1643955979207,0.04756639,38053.0,38051.0,0.32850094]
[1643955979410,0.04756639,38053.0,38052.0,0.59826566]
[1643955979707,0.04756639,38053.0,38042.0,0.2560238]
[1643955979708,0.04756639,38053.0,38043.0,0.34526476]
[1643955979907,0.06573017,38051.0,38044.0,0.345337]
[1643955980108,0.06573017,38051.0,38042.0,0.2009902]
[1643955980109,0.04756639,38049.0,38047.0,0.0024336]
[1643955980308,0.04756639,38049.0,38048.0,0.3477706]
[1643955980606,0.001,38058.0,38052.0,0.28745142]
[1643955980607,0.00094,38058.0,38052.0,0.28745142]
[1643955980806,0.00397574,38056.0,38055.0,0.19095846]
[1643955981007,0.05136213,38056.0,38055.0,0.19095846]
[1643955981206,0.05124213,38056.0,38055.0,0.10243515]
[1643955981415,0.39639913,38056.0,38055.0,0.10243515]
[1643955981610,0.39627913,38056.0,38055.0,0.10243515]
[1643955981809,0.39278339,38056.0,38055.0,0.10243515]
[1643955982013,0.345277,38056.0,38047.0,0.34526476]
[1643955982210,0.345217,38056.0,38047.0,0.34526476]
[1643955982459,0.065715,38057.0,38047.0,0.34526476]
[1643955982460,0.065715,38057.0,38048.0,0.345337]
[1643955982659,0.065715,38057.0,38049.0,0.74526476]
[1643955982660,0.04702639,38050.0,38049.0,0.74526476]
[1643955982861,0.04702639,38050.0,38048.0,0.28629717]
[1643955982862,0.17491339,38050.0,38048.0,0.28629717]
[1643955983061,0.065655,38057.0,38049.0,0.89537965]
[1643955983062,0.10354965,38055.0,38049.0,0.89537965]
[1643955983263,0.04678639,38050.0,38049.0,0.345169]
[1643955983462,0.04675675,38050.0,38043.0,0.0218571]
[1643955983662,0.065603,38053.0,38043.0,0.01861386]
[1643955983863,0.04675675,38044.0,38043.0,0.01861386]
[1643955984363,0.14775338,38044.0,38043.0,0.01861386]
[1643955984666,0.345169,38043.0,38040.0,0.29487147]
[1643955984867,0.04675675,38041.0,38039.0,0.00053321]
[1643955985462,0.04675675,38041.0,38034.0,0.5]
[1643955985664,0.10099663,38044.0,38038.0,0.0010098]
[1643955985665,0.06574323,38040.0,38038.0,0.0010098]
[1643955985865,0.3229784,38039.0,38038.0,0.0010098]
[1643955986327,0.6681474,38039.0,38038.0,0.0010098]
[1643955986525,0.8298311,38039.0,38031.0,0.05]
[1643955986728,0.04675675,38032.0,38031.0,1.445169]
[1643955986927,0.24985696,38039.0,38029.0,0.24474987]
[1643955987123,0.24985696,38039.0,38030.0,0.345169]
[1643955987124,0.04675675,38035.0,38030.0,0.345169]
[1643955987524,0.04675675,38035.0,38030.0,0.63741017]
[1643955987724,0.04675675,38031.0,38030.0,0.345169]
[1643955987925,0.09077589,38033.0,38031.0,0.00053258]
[1643955988127,0.04675675,38035.0,38031.0,0.00053258]
[1643955988425,0.31456826,38038.0,38031.0,0.00053258]
[1643955988624,0.04675675,38033.0,38032.0,1.395169]
[1643955988824,0.04675675,38033.0,38032.0,0.695169]
[1643955989026,0.04675675,38033.0,38032.0,0.345169]
[1643955989830,0.04675675,38035.0,38032.0,0.345169]
[1643955990055,0.04675675,38033.0,38032.0,0.345169]
[1643955990455,0.04675675,38033.0,38032.0,0.64115447]
[1643955990657,0.00665675,38035.0,38033.0,0.38283683]
[1643955990856,0.00665675,38037.0,38034.0,0.42738511]
[1643955991254,0.06574011,38042.0,38035.0,0.21460468]
[1643955991255,0.00665675,38036.0,38035.0,0.21460468]
[1643955991456,0.06574011,38042.0,38035.0,0.6210456]
[1643955991657,0.00665675,38039.0,38035.0,0.2758766]
[1643955991856,0.00665675,38041.0,38038.0,0.04334324]
[1643955992055,0.32448455,38045.0,38039.0,0.07449107]
[1643955992056,0.021963,38045.0,38039.0,0.07449107]
[1643955992256,0.00665675,38040.0,38039.0,0.07449107]
[1643955993057,0.00665675,38040.0,38039.0,0.30108185]
[1643955993256,0.00665675,38043.0,38039.0,1.03401512]
[1643955993456,0.00100886,38045.0,38040.0,0.04334324]
[1643955993719,0.00100886,38045.0,38044.0,1.39334324]
[1643955993909,0.00665675,38046.0,38044.0,0.345169]
[1643955994109,0.00665675,38046.0,38039.0,0.22659078]
[1643955994309,0.30091361,38050.0,38041.0,0.24238628]
[1643955994509,0.30091361,38050.0,38036.0,0.00100914]
[1643955994710,0.00665675,38037.0,38036.0,0.84617814]
[1643955994908,0.00665675,38037.0,38036.0,0.34617814]
[1643955995112,0.00665675,38037.0,38036.0,0.345169]
[1643955996113,0.00665675,38037.0,38035.0,0.00053178]
[1643955996311,0.00665675,38037.0,38033.0,0.02195987]
[1643955996312,0.0526,38036.0,38033.0,0.02195987]
[1643955996610,0.0526,38036.0,38035.0,0.00053178]
[1643955996810,0.14438652,38036.0,38035.0,0.00053178]
[1643955997011,0.4289031,38036.0,38035.0,0.00053178]
[1643955997212,0.7740721,38036.0,38035.0,0.00053178]
[1643955997454,0.7740721,38036.0,38030.0,0.05]
[1643955997758,0.41092054,38035.0,38034.0,0.00100866]
[1643955997955,0.40442575,38035.0,38034.0,0.00100866]
[1643955998156,0.00665675,38035.0,38034.0,0.00100866]
[1643955998556,0.00665675,38035.0,38031.0,0.04334324]
[1643955998755,0.13149654,38040.0,38031.0,0.04334324]
[1643955998756,0.00665675,38033.0,38031.0,0.04334324]
[1643955998956,0.00665675,38033.0,38030.0,0.2854325]
[1643955999156,0.13149654,38040.0,38026.0,0.04334324]
[1643955999157,0.07457352,38032.0,38026.0,0.04334324]
[1643955999356,0.00665675,38029.0,38027.0,0.38851224]
[1643956000057,0.00665675,38029.0,38027.0,0.345169]
[1643956000259,0.06575172,38034.0,38028.0,0.28288263]
[1643956000455,0.00665675,38030.0,38026.0,0.30836663]
[1643956000661,0.06575172,38034.0,38026.0,0.30836663]
[1643956000856,0.00665675,38027.0,38026.0,0.65353563]
[1643956001056,0.00665675,38027.0,38026.0,0.65252687]
[1643956001310,0.00665675,38027.0,38026.0,0.79962487]
[1643956001509,0.00665675,38027.0,38026.0,0.345169]
[1643956001913,0.00665675,38027.0,38026.0,1.19334324]
[1643956002109,0.00665675,38027.0,38026.0,0.345169]
[1643956002710,0.00665675,38027.0,38025.0,0.00100878]
[1643956003110,0.08474051,38026.0,38025.0,0.00100878]
[1643956003512,0.08474051,38026.0,38021.0,0.01]
[1643956003713,0.08474051,38026.0,38024.0,0.0010088]
[1643956003714,0.0526,38025.0,38024.0,0.0010088]
[1643956004314,0.05925675,38025.0,38024.0,0.0010088]
[1643956004713,0.05925675,38025.0,38021.0,0.01]
[1643956004964,0.05925675,38025.0,38023.0,0.00100881]
[1643956004965,0.0526,38025.0,38023.0,0.00100881]
[1643956005363,0.00665675,38024.0,38023.0,0.00100881]
[1643956005761,0.00665675,38024.0,38021.0,0.01]
[1643956005963,0.00665675,38023.0,38022.0,0.34617782]
[1643956006761,0.05,38029.0,38022.0,0.34617782]
[1643956006962,0.05,38029.0,38021.0,0.01]
[1643956007161,0.05,38029.0,38024.0,0.0010088]
[1643956007364,0.345169,38028.0,38024.0,0.0010088]
[1643956007765,0.08554205,38025.0,38024.0,0.0010088]
[1643956008169,0.08554205,38025.0,38021.0,0.01]
[1643956008170,0.13814205,38025.0,38021.0,0.01]
[1643956008367,0.13814205,38025.0,38023.0,0.00100881]
[1643956008368,0.18814205,38025.0,38023.0,0.00100881]
[1643956008566,0.64592696,38024.0,38021.0,0.0001]
[1643956008826,0.0526,38023.0,38021.0,0.0001]
[1643956009026,0.127887,38022.0,38021.0,0.0001]
[1643956009227,0.127887,38022.0,38014.0,0.2290383]
[1643956009228,0.345169,38021.0,38009.0,0.05]
[1643956009427,0.127887,38017.0,38009.0,0.05]
[1643956009627,0.0526,38016.0,38009.0,0.05]
[1643956009827,0.345169,38015.0,38009.0,0.05]
[1643956010026,0.345169,38015.0,38009.0,0.04999999]
[1643956010027,0.0526,38014.0,38009.0,0.04999999]
[1643956010226,0.127887,38013.0,38011.0,0.3213194]
[1643956010427,0.0526,38012.0,38011.0,0.3213194]
[1643956010628,0.397769,38012.0,38011.0,0.01]
[1643956010834,0.447769,38012.0,38011.0,0.01]
[1643956011435,0.75087908,38012.0,38011.0,0.01]
[1643956011628,1.00509554,38012.0,38011.0,0.01]
[1643956011831,0.76777955,38012.0,38011.0,0.01]
[1643956012230,0.86777955,38012.0,38011.0,0.01]
[1643956012655,0.86777955,38012.0,38011.0,0.0001]
[1643956013555,1.26851896,38012.0,38011.0,0.0001]
[1643956013855,1.50889754,38012.0,38011.0,0.0001]
[1643956014056,1.65889754,38012.0,38011.0,0.0001]
[1643956014256,1.70889754,38012.0,38011.0,0.0001]
[1643956014455,1.70889754,38012.0,38001.0,0.132]
[1643956014456,0.3099,38011.0,38010.0,0.00100778]
[1643956014656,0.88683807,38011.0,38010.0,0.00100778]
[1643956014856,1.08683807,38011.0,38010.0,0.00100778]
[1643956015056,0.62691136,38011.0,38010.0,0.0018046]
[1643956015257,0.67691136,38011.0,38010.0,0.0018046]
[1643956015456,0.67691136,38011.0,38010.0,0.00079682]
[1643956015656,1.01765072,38011.0,38010.0,0.00079682]
[1643956016515,0.67691136,38011.0,38010.0,0.00079682]
[1643956016712,0.67691136,38011.0,38005.0,0.0092503]
[1643956016713,0.66701136,38011.0,38005.0,0.0092503]
[1643956016915,0.53986236,38011.0,38009.0,0.00100779]
[1643956017114,0.345407,38010.0,38009.0,0.00154257]
[1643956017314,0.398007,38010.0,38009.0,0.00154257]
[1643956017514,0.75747861,38010.0,38009.0,0.00154257]
[1643956017716,0.498007,38010.0,38009.0,0.00154257]
[1643956017914,0.498007,38010.0,38009.0,0.00053478]
[1643956018520,0.42663143,38010.0,38009.0,0.00053478]
[1643956018916,0.42663143,38010.0,38008.0,0.00053103]
[1643956019115,0.42663143,38010.0,38005.0,0.0092503]
[1643956019116,0.229509,38009.0,38005.0,0.0092503]
[1643956019316,0.179509,38009.0,38008.0,0.00053103]
[1643956019516,0.25512139,38009.0,38008.0,0.00053103]
[1643956019718,0.70845562,38009.0,38005.0,0.0092503]
[1643956019961,0.18163693,38007.0,38005.0,0.0092503]
[1643956020158,0.245328,38006.0,38005.0,0.0092503]
[1643956020358,0.295328,38006.0,38005.0,0.0092503]
[1643956021066,0.36114441,38006.0,38005.0,0.0092503]
[1643956021259,0.73245615,38006.0,38005.0,0.0092503]
[1643956021460,0.46114441,38006.0,38005.0,0.0092503]
[1643956022759,0.46114441,38006.0,38004.0,0.0004945]
[1643956022961,0.126909,38005.0,38004.0,0.0004945]
[1643956023263,0.229509,38005.0,38004.0,0.0004945]
[1643956023722,0.279509,38005.0,38004.0,0.0004945]
[1643956023913,0.27267394,38002.0,38001.0,0.082]
[1643956024113,0.45218294,38002.0,38001.0,0.082]
[1643956024313,0.65218294,38002.0,38001.0,0.082]
[1643956024514,0.93786161,38002.0,38001.0,0.082]
[1643956024714,0.65218294,38002.0,38001.0,0.072]
[1643956028563,0.55218294,38002.0,38001.0,0.072]
[1643956029862,0.65218294,38002.0,38001.0,0.072]
[1643956030065,0.65218294,38002.0,38001.0,0.07235579]
[1643956033125,0.65218294,38002.0,38001.0,0.06235579]
[1643956033325,0.65218294,38002.0,38000.0,0.0009443]
[1643956033326,1.028616,38002.0,38000.0,0.0009443]
[1643956033526,0.192739,38001.0,37989.0,0.04999999]
[1643956033725,0.72276201,38002.0,38001.0,0.58336204]
[1643956033726,1.04600612,38002.0,38001.0,0.58336204]
[1643956033929,0.67016201,38002.0,38001.0,0.58336204]
[1643956034126,1.03720742,38002.0,38001.0,0.58336204]
[1643956034327,1.08980742,38002.0,38001.0,0.58336204]
[1643956035159,0.72276201,38002.0,38001.0,0.58336204]
[1643956035760,1.08902039,38002.0,38001.0,0.58336204]
[1643956036759,1.10772396,38002.0,38001.0,0.58336204]
[1643956036960,1.10772396,38002.0,38001.0,0.18835765]
[1643956037159,1.10772396,38002.0,38001.0,0.05055645]
[1643956038559,1.10772396,38002.0,38000.0,0.00094418]
[1643956038560,1.11446825,38002.0,38000.0,0.00094418]
[1643956038812,0.37111857,38001.0,38000.0,0.00094418]
[1643956039016,0.1526,38001.0,38000.0,0.00094418]
[1643956039217,0.05,37997.0,37994.0,0.00377728]
[1643956039414,0.08067947,37995.0,37991.0,0.01025737]
[1643956039613,0.0526,37994.0,37991.0,0.01]
[1643956040014,0.0526,37994.0,37991.0,0.05999999]
[1643956040216,0.1526,37994.0,37991.0,0.05899999]
[1643956040415,0.1526,37994.0,37991.0,0.009]
[1643956040615,0.31236447,37995.0,37994.0,0.3052]
[1643956040819,0.68263888,37995.0,37994.0,0.3052]
[1643956041017,0.63523888,37995.0,37994.0,0.3052]
[1643956041217,0.73523888,37995.0,37994.0,0.3052]
[1643956041823,0.75394245,37995.0,37994.0,0.3052]
[1643956042219,1.22346085,37995.0,37994.0,0.3052]
[1643956042881,0.85349307,37995.0,37994.0,0.3052]
[1643956043083,0.48321866,37995.0,37994.0,0.3052]
[1643956043482,0.85007283,37995.0,37994.0,0.3052]
[1643956044080,0.48321866,37995.0,37994.0,0.3052]
[1643956044281,1.05567082,37995.0,37991.0,0.00925737]
[1643956044485,0.3747526,37994.0,37993.0,0.00100742]
[1643956044679,0.83872022,37994.0,37993.0,0.00100742]
[1643956044881,0.95742379,37994.0,37991.0,0.00025737]
[1643956045083,0.96416808,37994.0,37989.0,0.01843397]
[1643956045480,0.55280046,37994.0,37988.0,0.00025897]
[1643956045680,0.55280046,37994.0,37985.0,0.00025897]
[1643956045681,0.5857768,37986.0,37985.0,0.00025897]
[1643956045881,0.53407357,37986.0,37983.0,0.00025897]
[1643956046086,0.065857,37985.0,37984.0,0.04999999]
[1643956046321,0.0526,37985.0,37984.0,0.04999999]
[1643956046721,0.0526,37985.0,37984.0,0.59999999]